[Event "Chessable Masters - Torneo preliminare"]
[White "Sharapov, Evgeny"]
[Black "Hambleton, Aman"]
[WhiteFideId "14103133"]
[BlackFideId "2606577"]
[WhiteElo "2337"]
[BlackElo "2447"]
[Result "1-0"]
[Round "4"]
[TimeControl "600+2"]
[Date "2023.03.13"]
[WhiteClock "0:03:55"]
[BlackClock "0:00:03"]

1. e4 {[%clk 0:09:59]}  e6 {[%clk 0:09:51]} 2. d4 {[%clk 0:09:59]}  d5 {[%clk 0:09:51]} 3. Nc3 {[%clk 0:10:00]}  Bb4 {[%clk 0:09:51]} 4. e5 {[%clk 0:10:01]}  Ne7 {[%clk 0:09:52]} 5. a3 {[%clk 0:10:02]}  Bxc3+ {[%clk 0:09:53]} 6. bxc3 {[%clk 0:10:03]}  b6 {[%clk 0:09:55]} 7. Nf3 {[%clk 0:10:02]}  Ba6 {[%clk 0:09:53]} 8. Bxa6 {[%clk 0:10:03]}  Nxa6 {[%clk 0:09:55]} 9. Qe2 {[%clk 0:10:03]}  Nb8 {[%clk 0:09:55]} 10. a4 {[%clk 0:10:04]}  Nbc6 {[%clk 0:09:56]} 11. c4 {[%clk 0:09:50]}  Na5 {[%clk 0:07:17]} 12. cxd5 {[%clk 0:09:48]}  Qxd5 {[%clk 0:07:19]} 13. Ba3 {[%clk 0:08:50]}  Nec6 {[%clk 0:06:11]} 14. c3 {[%clk 0:08:20]}  Nc4 {[%clk 0:05:08]} 15. O-O {[%clk 0:08:11]}  Nxa3 {[%clk 0:04:16]} 16. Rxa3 {[%clk 0:08:10]}  Na5 {[%clk 0:04:18]} 17. Nd2 {[%clk 0:06:57]}  O-O {[%clk 0:02:54]} 18. Ne4 {[%clk 0:06:43]}  Nc4 {[%clk 0:02:38]} 19. Raa1 {[%clk 0:06:39]}  Rfd8 {[%clk 0:01:42]} 20. Rad1 {[%clk 0:06:35]}  h6 {[%clk 0:01:14]} 21. Qg4 {[%clk 0:06:07]}  Kf8 {[%clk 0:01:09]} 22. Ng3 {[%clk 0:06:03]}  Nb2 {[%clk 0:00:07]} 23. Rde1 {[%clk 0:05:37]}  Nxa4 {[%clk 0:00:06]} 24. Re3 {[%clk 0:05:26]}  g6 {[%clk 0:00:04]} 25. Qh4 {[%clk 0:05:05]}  h5 {[%clk 0:00:02]} 26. Rf3 {[%clk 0:04:54]}  c5 {[%clk 0:00:03]} 27. Qf6 {[%clk 0:04:44]}  Qb7 {[%clk 0:00:03]} 28. Qxg6 {[%clk 0:04:33]}  Ke8 {[%clk 0:00:04]} 29. Qg8+ {[%clk 0:04:30]}  Kd7 {[%clk 0:00:06]} 30. Rxf7+ {[%clk 0:04:31]}  Kc6 {[%clk 0:00:07]} 31. Qh7 {[%clk 0:04:25]}  Qc8 {[%clk 0:00:06]} 32. Qe4+ {[%clk 0:04:10]}  Kb5 {[%clk 0:00:07]} 33. c4+ {[%clk 0:04:01]}  Ka5 {[%clk 0:00:03]} 34. Ra1 {[%clk 0:03:56]}  cxd4 {[%clk 0:00:04]} 35. Qe1+ {[%clk 0:03:55]}  Ka6 {[%clk 0:00:03]} 36. Rxa4# {[%clk 0:03:55]} 1-0


[Site "Internet"]

[Event "Chessable Masters - Torneo preliminare"]
[White "Bachmann, Axel"]
[Black "Sasikiran, Krishnan"]
[WhiteFideId "3700488"]
[BlackFideId "5004985"]
[WhiteElo "2618"]
[BlackElo "2559"]
[Result "1-0"]
[Round "4"]
[TimeControl "600+2"]
[Date "2023.03.13"]
[WhiteClock "0:01:09"]
[BlackClock "0:00:05"]

1. Nf3 {[%clk 0:10:01]}  d5 {[%clk 0:10:00]} 2. e3 {[%clk 0:10:01]}  g6 {[%clk 0:09:55]} 3. c4 {[%clk 0:10:02]}  c6 {[%clk 0:09:56]} 4. Nc3 {[%clk 0:10:03]}  Nf6 {[%clk 0:09:53]} 5. cxd5 {[%clk 0:10:04]}  cxd5 {[%clk 0:09:54]} 6. Bb5+ {[%clk 0:10:05]}  Nc6 {[%clk 0:09:51]} 7. Ne5 {[%clk 0:10:04]}  Bd7 {[%clk 0:09:52]} 8. Bxc6 {[%clk 0:10:05]}  Bxc6 {[%clk 0:09:30]} 9. Nxc6 {[%clk 0:09:59]}  bxc6 {[%clk 0:09:31]} 10. d4 {[%clk 0:09:55]}  e6 {[%clk 0:09:23]} 11. Na4 {[%clk 0:09:44]}  Bd6 {[%clk 0:08:51]} 12. Bd2 {[%clk 0:09:36]}  O-O {[%clk 0:08:49]} 13. Rc1 {[%clk 0:09:36]}  Rc8 {[%clk 0:08:49]} 14. O-O {[%clk 0:09:35]}  h5 {[%clk 0:08:27]} 15. h3 {[%clk 0:09:34]}  Ne4 {[%clk 0:08:23]} 16. Qe2 {[%clk 0:09:04]}  Bb8 {[%clk 0:06:53]} 17. Be1 {[%clk 0:09:00]}  Qd6 {[%clk 0:06:31]} 18. f4 {[%clk 0:08:59]}  Qe7 {[%clk 0:06:26]} 19. Nc5 {[%clk 0:08:19]}  Nxc5 {[%clk 0:06:24]} 20. Rxc5 {[%clk 0:08:21]}  Bd6 {[%clk 0:06:25]} 21. Rc2 {[%clk 0:08:22]}  c5 {[%clk 0:06:24]} 22. Bc3 {[%clk 0:08:13]}  c4 {[%clk 0:06:05]} 23. e4 {[%clk 0:08:11]}  dxe4 {[%clk 0:05:58]} 24. Qxe4 {[%clk 0:08:10]}  Rfd8 {[%clk 0:05:39]} 25. Kh1 {[%clk 0:08:02]}  Bb4 {[%clk 0:05:24]} 26. g4 {[%clk 0:07:28]}  Bxc3 {[%clk 0:04:56]} 27. bxc3 {[%clk 0:07:27]}  Qh4 {[%clk 0:04:57]} 28. Rg1 {[%clk 0:06:49]}  hxg4 {[%clk 0:04:25]} 29. Rh2 {[%clk 0:06:23]}  g3 {[%clk 0:04:19]} 30. Qe1 {[%clk 0:06:25]}  Qxf4 {[%clk 0:04:07]} 31. Rxg3 {[%clk 0:06:23]}  Rc6 {[%clk 0:03:36]} 32. Rhg2 {[%clk 0:06:21]}  Rb8 {[%clk 0:03:12]} 33. Rg4 {[%clk 0:06:05]}  Qd6 {[%clk 0:02:30]} 34. Qe4 {[%clk 0:05:44]}  Kf8 {[%clk 0:02:18]} 35. Rxg6 {[%clk 0:05:12]}  Ke7 {[%clk 0:01:16]} 36. Rg7 {[%clk 0:04:50]}  Rf8 {[%clk 0:01:06]} 37. Qh4+ {[%clk 0:03:42]}  Kd7 {[%clk 0:01:00]} 38. Qf6 {[%clk 0:03:43]}  Qe7 {[%clk 0:00:58]} 39. Qf3 {[%clk 0:03:37]}  Rb6 {[%clk 0:00:54]} 40. Rf2 {[%clk 0:03:27]}  Rb1+ {[%clk 0:00:42]} 41. Kg2 {[%clk 0:03:27]}  Kc8 {[%clk 0:00:28]} 42. Qa8+ {[%clk 0:02:42]}  Rb8 {[%clk 0:00:22]} 43. Qc6+ {[%clk 0:02:42]}  Kd8 {[%clk 0:00:23]} 44. d5 {[%clk 0:02:14]}  Rc8 {[%clk 0:00:17]} 45. Qb5 {[%clk 0:02:15]}  Rc5 {[%clk 0:00:13]} 46. Qb8+ {[%clk 0:01:36]}  Rc8 {[%clk 0:00:14]} 47. Qe5 {[%clk 0:01:28]}  Rc5 {[%clk 0:00:15]} 48. Rb2 {[%clk 0:01:18]}  Qc7 {[%clk 0:00:06]} 49. Rb8+ {[%clk 0:01:12]}  Ke7 {[%clk 0:00:05]} 50. d6+ {[%clk 0:01:09]} 1-0


[Site "Internet"]

[Event "Chessable Masters - Torneo preliminare"]
[White "Huschenbeth, Niclas"]
[Black "Harikrishna, Pentala"]
[WhiteFideId "24604747"]
[BlackFideId "5007003"]
[WhiteElo "2566"]
[BlackElo "2627"]
[Result "0-1"]
[Round "4"]
[TimeControl "600+2"]
[Date "2023.03.13"]
[WhiteClock "0:00:03"]
[BlackClock "0:00:33"]

1. e4 {[%clk 0:10:01]}  c5 {[%clk 0:10:00]} 2. Nf3 {[%clk 0:10:00]}  e6 {[%clk 0:10:02]} 3. d4 {[%clk 0:10:00]}  cxd4 {[%clk 0:10:03]} 4. Nxd4 {[%clk 0:10:02]}  Nc6 {[%clk 0:10:04]} 5. Nc3 {[%clk 0:09:54]}  Qc7 {[%clk 0:10:05]} 6. Be3 {[%clk 0:09:53]}  a6 {[%clk 0:09:59]} 7. Bd3 {[%clk 0:09:52]}  Nf6 {[%clk 0:09:51]} 8. O-O {[%clk 0:09:51]}  Ne5 {[%clk 0:09:36]} 9. Be2 {[%clk 0:09:41]}  Nc4 {[%clk 0:09:31]} 10. Bxc4 {[%clk 0:09:39]}  Qxc4 {[%clk 0:09:31]} 11. f4 {[%clk 0:08:20]}  h5 {[%clk 0:09:05]} 12. h3 {[%clk 0:08:10]}  b5 {[%clk 0:09:03]} 13. e5 {[%clk 0:08:06]}  Nd5 {[%clk 0:09:04]} 14. Nxd5 {[%clk 0:08:06]}  Qxd5 {[%clk 0:09:06]} 15. Qe2 {[%clk 0:08:04]}  Bb7 {[%clk 0:09:04]} 16. Rad1 {[%clk 0:07:48]}  Qe4 {[%clk 0:09:03]} 17. Qf2 {[%clk 0:06:46]}  Bc5 {[%clk 0:07:55]} 18. f5 {[%clk 0:05:28]}  O-O {[%clk 0:07:24]} 19. Rde1 {[%clk 0:04:20]}  Bxd4 {[%clk 0:05:18]} 20. Bxd4 {[%clk 0:04:20]}  Qxf5 {[%clk 0:05:20]} 21. Qxf5 {[%clk 0:04:21]}  exf5 {[%clk 0:05:21]} 22. Rxf5 {[%clk 0:04:23]}  Rac8 {[%clk 0:04:43]} 23. c3 {[%clk 0:04:17]}  g6 {[%clk 0:04:42]} 24. Rf6 {[%clk 0:03:50]}  Rc6 {[%clk 0:04:43]} 25. Rd6 {[%clk 0:03:33]}  Bc8 {[%clk 0:04:10]} 26. a4 {[%clk 0:02:15]}  Re8 {[%clk 0:04:03]} 27. Rxc6 {[%clk 0:02:13]}  dxc6 {[%clk 0:04:03]} 28. Kf2 {[%clk 0:01:56]}  Rd8 {[%clk 0:03:50]} 29. Ke3 {[%clk 0:01:51]}  bxa4 {[%clk 0:03:08]} 30. Ra1 {[%clk 0:01:44]}  Bd7 {[%clk 0:03:08]} 31. Bc5 {[%clk 0:00:48]}  Bf5 {[%clk 0:02:47]} 32. Rxa4 {[%clk 0:00:43]}  Rd5 {[%clk 0:02:22]} 33. Bd6 {[%clk 0:00:43]}  a5 {[%clk 0:02:13]} 34. g4 {[%clk 0:00:25]}  Bc2 {[%clk 0:01:56]} 35. Rc4 {[%clk 0:00:15]}  Rd3+ {[%clk 0:01:40]} 36. Kf4 {[%clk 0:00:16]}  f6 {[%clk 0:01:41]} 37. g5 {[%clk 0:00:09]}  fxe5+ {[%clk 0:01:32]} 38. Bxe5 {[%clk 0:00:10]}  Rxh3 {[%clk 0:01:26]} 39. Rxc6 {[%clk 0:00:11]}  Rh4+ {[%clk 0:01:25]} 40. Kg3 {[%clk 0:00:09]}  Rg4+ {[%clk 0:01:23]} 41. Kh2 {[%clk 0:00:06]}  Rxg5 {[%clk 0:01:19]} 42. Bd4 {[%clk 0:00:05]}  a4 {[%clk 0:01:04]} 43. Rc7 {[%clk 0:00:04]}  Kf8 {[%clk 0:00:45]} 44. c4 {[%clk 0:00:04]}  Rg4 {[%clk 0:00:42]} 45. Bc3 {[%clk 0:00:03]}  Ke8 {[%clk 0:00:33]} 0-1


[Site "Internet"]

[Event "Chessable Masters - Torneo preliminare"]
[White "Raja, Harshit"]
[Black "Larino Nieto, David"]
[WhiteFideId "5089000"]
[BlackFideId "2256444"]
[WhiteElo "2361"]
[BlackElo "2496"]
[Result "1-0"]
[Round "4"]
[TimeControl "600+2"]
[Date "2023.03.13"]
[WhiteClock "0:01:20"]
[BlackClock "0:00:03"]

1. e4 {[%clk 0:10:01]}  c6 {[%clk 0:09:43]} 2. Nf3 {[%clk 0:10:02]}  d5 {[%clk 0:09:42]} 3. Nc3 {[%clk 0:10:04]}  g6 {[%clk 0:09:43]} 4. d4 {[%clk 0:10:03]}  Bg7 {[%clk 0:09:44]} 5. Bd3 {[%clk 0:10:03]}  dxe4 {[%clk 0:09:44]} 6. Nxe4 {[%clk 0:10:04]}  Nf6 {[%clk 0:09:45]} 7. O-O {[%clk 0:09:47]}  O-O {[%clk 0:09:45]} 8. Re1 {[%clk 0:09:37]}  Bg4 {[%clk 0:09:34]} 9. Nxf6+ {[%clk 0:09:29]}  exf6 {[%clk 0:09:31]} 10. h3 {[%clk 0:09:23]}  Be6 {[%clk 0:09:15]} 11. c4 {[%clk 0:09:08]}  Na6 {[%clk 0:09:10]} 12. Be3 {[%clk 0:09:02]}  Re8 {[%clk 0:09:08]} 13. Rc1 {[%clk 0:08:56]}  Re7 {[%clk 0:09:06]} 14. Qb3 {[%clk 0:08:22]}  Rd7 {[%clk 0:08:38]} 15. Be4 {[%clk 0:08:01]}  Qa5 {[%clk 0:08:19]} 16. Red1 {[%clk 0:07:37]}  Rad8 {[%clk 0:08:17]} 17. d5 {[%clk 0:07:23]}  cxd5 {[%clk 0:04:55]} 18. cxd5 {[%clk 0:07:23]}  Bf5 {[%clk 0:04:53]} 19. Bxf5 {[%clk 0:07:09]}  gxf5 {[%clk 0:04:55]} 20. Nh4 {[%clk 0:06:54]}  Bf8 {[%clk 0:03:51]} 21. Nxf5 {[%clk 0:05:54]}  Rxd5 {[%clk 0:03:43]} 22. Rxd5 {[%clk 0:05:42]}  Rxd5 {[%clk 0:03:29]} 23. Nh6+ {[%clk 0:05:35]}  Kg7 {[%clk 0:01:56]} 24. Qxb7 {[%clk 0:05:33]}  Nc7 {[%clk 0:01:31]} 25. Nxf7 {[%clk 0:04:53]}  Rd7 {[%clk 0:01:16]} 26. Nd8 {[%clk 0:04:36]}  Bd6 {[%clk 0:01:00]} 27. Ne6+ {[%clk 0:04:25]}  Kf7 {[%clk 0:00:59]} 28. Nxc7 {[%clk 0:04:20]}  Bxc7 {[%clk 0:01:01]} 29. Qb3+ {[%clk 0:04:12]}  Kg7 {[%clk 0:00:57]} 30. Qe6 {[%clk 0:04:06]}  Qb5 {[%clk 0:00:40]} 31. b3 {[%clk 0:03:43]}  Qd3 {[%clk 0:00:30]} 32. g3 {[%clk 0:03:35]}  Be5 {[%clk 0:00:22]} 33. Qc4 {[%clk 0:03:13]}  Qd6 {[%clk 0:00:14]} 34. Qg4+ {[%clk 0:03:08]}  Kf7 {[%clk 0:00:15]} 35. Qh5+ {[%clk 0:03:02]}  Ke6 {[%clk 0:00:14]} 36. Qe8+ {[%clk 0:02:59]}  Re7 {[%clk 0:00:14]} 37. Qg8+ {[%clk 0:02:59]}  Rf7 {[%clk 0:00:12]} 38. Qc8+ {[%clk 0:02:56]}  Qd7 {[%clk 0:00:10]} 39. Qa6+ {[%clk 0:02:49]}  Kf5 {[%clk 0:00:10]} 40. Qe2 {[%clk 0:02:41]}  Kg6 {[%clk 0:00:09]} 41. Rd1 {[%clk 0:02:42]}  Qxh3 {[%clk 0:00:09]} 42. Rd8 {[%clk 0:02:26]}  h5 {[%clk 0:00:09]} 43. Qc2+ {[%clk 0:02:10]}  Kg7 {[%clk 0:00:10]} 44. Qc8 {[%clk 0:02:07]}  Qxc8 {[%clk 0:00:09]} 45. Rxc8 {[%clk 0:02:09]}  a5 {[%clk 0:00:05]} 46. Ra8 {[%clk 0:02:09]}  Bc3 {[%clk 0:00:06]} 47. Bb6 {[%clk 0:02:00]}  Rd7 {[%clk 0:00:07]} 48. Bxa5 {[%clk 0:01:54]}  Bd4 {[%clk 0:00:08]} 49. Rc8 {[%clk 0:01:48]}  Kg6 {[%clk 0:00:07]} 50. Kf1 {[%clk 0:01:45]}  Kf5 {[%clk 0:00:08]} 51. Ke2 {[%clk 0:01:43]}  Re7+ {[%clk 0:00:08]} 52. Kf3 {[%clk 0:01:43]}  Ra7 {[%clk 0:00:08]} 53. b4 {[%clk 0:01:41]}  Be5 {[%clk 0:00:08]} 54. Rc5 {[%clk 0:01:40]}  Rd7 {[%clk 0:00:08]} 55. b5 {[%clk 0:01:40]}  Rd1 {[%clk 0:00:08]} 56. b6 {[%clk 0:01:34]}  Rd3+ {[%clk 0:00:06]} 57. Ke2 {[%clk 0:01:27]}  Ra3 {[%clk 0:00:06]} 58. f4 {[%clk 0:01:27]}  Rxa2+ {[%clk 0:00:06]} 59. Kd1 {[%clk 0:01:27]}  Ke4 {[%clk 0:00:04]} 60. fxe5 {[%clk 0:01:28]}  fxe5 {[%clk 0:00:04]} 61. Kc1 {[%clk 0:01:19]}  Ra3 {[%clk 0:00:02]} 62. Kb2 {[%clk 0:01:18]}  Rxg3 {[%clk 0:00:02]} 63. b7 {[%clk 0:01:19]}  Rg2+ {[%clk 0:00:04]} 64. Kb3 {[%clk 0:01:19]}  Rg1 {[%clk 0:00:03]} 65. Bc3 {[%clk 0:01:20]} 1-0


[Site "Internet"]

[Event "Chessable Masters - Torneo preliminare"]
[White "Girya, Olga"]
[Black "Grischuk, Alexander"]
[WhiteFideId "4195752"]
[BlackFideId "4126025"]
[WhiteElo "2327"]
[BlackElo "2731"]
[Result "0-1"]
[Round "4"]
[TimeControl "600+2"]
[Date "2023.03.13"]
[WhiteClock "0:00:03"]
[BlackClock "0:03:57"]

1. d4 {[%clk 0:10:01]}  g6 {[%clk 0:09:46]} 2. c4 {[%clk 0:09:42]}  Bg7 {[%clk 0:09:46]} 3. Nc3 {[%clk 0:09:41]}  d6 {[%clk 0:09:47]} 4. Nf3 {[%clk 0:09:28]}  c5 {[%clk 0:09:43]} 5. d5 {[%clk 0:09:21]}  Bxc3+ {[%clk 0:09:41]} 6. bxc3 {[%clk 0:09:22]}  e5 {[%clk 0:09:42]} 7. e4 {[%clk 0:08:30]}  Qe7 {[%clk 0:09:35]} 8. Bd3 {[%clk 0:08:20]}  f5 {[%clk 0:09:31]} 9. Qa4+ {[%clk 0:07:38]}  Kd8 {[%clk 0:09:23]} 10. Qc2 {[%clk 0:05:45]}  Kc7 {[%clk 0:08:35]} 11. g3 {[%clk 0:03:44]}  Nf6 {[%clk 0:06:49]} 12. Nd2 {[%clk 0:02:47]}  f4 {[%clk 0:06:25]} 13. gxf4 {[%clk 0:01:35]}  exf4 {[%clk 0:06:25]} 14. f3 {[%clk 0:01:02]}  Nbd7 {[%clk 0:06:15]} 15. h4 {[%clk 0:00:16]}  Ne5 {[%clk 0:06:12]} 16. Be2 {[%clk 0:00:17]}  Nh5 {[%clk 0:05:26]} 17. Nf1 {[%clk 0:00:18]}  Bd7 {[%clk 0:04:48]} 18. Bd2 {[%clk 0:00:19]}  h6 {[%clk 0:04:44]} 19. O-O-O {[%clk 0:00:20]}  Raf8 {[%clk 0:04:40]} 20. Be1 {[%clk 0:00:18]}  g5 {[%clk 0:04:35]} 21. hxg5 {[%clk 0:00:18]}  hxg5 {[%clk 0:04:37]} 22. Bf2 {[%clk 0:00:11]}  g4 {[%clk 0:04:28]} 23. fxg4 {[%clk 0:00:09]}  Bxg4 {[%clk 0:04:30]} 24. Bh4 {[%clk 0:00:06]}  Qd7 {[%clk 0:04:20]} 25. Bxg4 {[%clk 0:00:05]}  Qxg4 {[%clk 0:04:18]} 26. Qf2 {[%clk 0:00:02]}  Nf6 {[%clk 0:03:57]} 27. Nh2 {[%clk 0:00:03]}  Qxh4 {[%clk 0:03:57]} 0-1


[Site "Internet"]

[Event "Chessable Masters - Torneo preliminare"]
[White "Hong, Andrew"]
[Black "Bok, Benjamin"]
[WhiteFideId "2099438"]
[BlackFideId "1017063"]
[WhiteElo "2508"]
[BlackElo "2608"]
[Result "0-1"]
[Round "4"]
[TimeControl "600+2"]
[Date "2023.03.13"]
[WhiteClock "0:05:57"]
[BlackClock "0:00:31"]

1. e4 {[%clk 0:10:01]}  e5 {[%clk 0:10:00]} 2. Nf3 {[%clk 0:09:59]}  Nc6 {[%clk 0:10:01]} 3. Bb5 {[%clk 0:09:55]}  Nf6 {[%clk 0:10:01]} 4. d3 {[%clk 0:09:54]}  Bc5 {[%clk 0:10:02]} 5. Bxc6 {[%clk 0:09:52]}  dxc6 {[%clk 0:10:04]} 6. O-O {[%clk 0:09:53]}  Qe7 {[%clk 0:10:01]} 7. Nbd2 {[%clk 0:09:47]}  Bg4 {[%clk 0:10:01]} 8. Nc4 {[%clk 0:09:41]}  Nd7 {[%clk 0:10:01]} 9. a3 {[%clk 0:09:42]}  f6 {[%clk 0:09:55]} 10. h3 {[%clk 0:09:39]}  Bh5 {[%clk 0:09:55]} 11. b4 {[%clk 0:09:31]}  Bd6 {[%clk 0:09:54]} 12. Ne3 {[%clk 0:09:27]}  Nf8 {[%clk 0:09:02]} 13. Nf5 {[%clk 0:09:18]}  Qf7 {[%clk 0:09:02]} 14. Ng5 {[%clk 0:08:18]}  Bxd1 {[%clk 0:08:46]} 15. Nxf7 {[%clk 0:08:18]}  Kxf7 {[%clk 0:08:47]} 16. Rxd1 {[%clk 0:08:18]}  Ne6 {[%clk 0:08:43]} 17. c3 {[%clk 0:08:15]}  a5 {[%clk 0:08:29]} 18. Be3 {[%clk 0:08:04]}  Rhd8 {[%clk 0:08:25]} 19. Kf1 {[%clk 0:07:45]}  Bf8 {[%clk 0:08:21]} 20. Ke2 {[%clk 0:07:39]}  g6 {[%clk 0:08:20]} 21. Nh4 {[%clk 0:07:40]}  Ra6 {[%clk 0:08:07]} 22. Rdb1 {[%clk 0:07:33]}  b5 {[%clk 0:07:37]} 23. Nf3 {[%clk 0:06:43]}  Rda8 {[%clk 0:07:35]} 24. Bc1 {[%clk 0:06:42]}  axb4 {[%clk 0:07:27]} 25. cxb4 {[%clk 0:06:44]}  Ra4 {[%clk 0:07:20]} 26. Bb2 {[%clk 0:06:41]}  Nf4+ {[%clk 0:07:17]} 27. Kd2 {[%clk 0:06:40]}  Nxg2 {[%clk 0:05:52]} 28. d4 {[%clk 0:06:39]}  Rd8 {[%clk 0:05:44]} 29. Kc2 {[%clk 0:06:30]}  exd4 {[%clk 0:05:31]} 30. Bxd4 {[%clk 0:06:29]}  c5 {[%clk 0:05:03]} 31. Bc3 {[%clk 0:06:19]}  Nf4 {[%clk 0:04:38]} 32. e5 {[%clk 0:06:13]}  Rd3 {[%clk 0:03:32]} 33. Nd2 {[%clk 0:05:57]}  Rxh3 {[%clk 0:02:20]} 34. bxc5 {[%clk 0:05:57]}  Nd5 {[%clk 0:01:49]} 35. Bb2 {[%clk 0:05:57]}  Bxc5 {[%clk 0:01:13]} 36. exf6 {[%clk 0:05:57]}  Bxf2 {[%clk 0:01:10]} 37. Rh1 {[%clk 0:05:57]}  Rxh1 {[%clk 0:00:44]} 38. Rxh1 {[%clk 0:05:59]}  Rh4 {[%clk 0:00:44]} 39. Rb1 {[%clk 0:05:50]}  Rf4 {[%clk 0:00:23]} 40. Be5 {[%clk 0:05:36]}  Rf5 {[%clk 0:00:17]} 41. Ba1 {[%clk 0:05:36]}  Nxf6 {[%clk 0:00:12]} 42. Rf1 {[%clk 0:05:37]}  Ng4 {[%clk 0:00:09]} 43. Kd3 {[%clk 0:05:36]}  Bc5 {[%clk 0:00:08]} 44. Rb1 {[%clk 0:05:37]}  Bxa3 {[%clk 0:00:08]} 45. Ne4 {[%clk 0:05:37]}  Nf2+ {[%clk 0:00:07]} 46. Nxf2 {[%clk 0:05:36]}  Rxf2 {[%clk 0:00:09]} 47. Rxb5 {[%clk 0:05:38]}  Bd6 {[%clk 0:00:10]} 48. Ke3 {[%clk 0:05:38]}  Rf5 {[%clk 0:00:10]} 49. Rb8 {[%clk 0:05:38]}  Be5 {[%clk 0:00:11]} 50. Bb2 {[%clk 0:05:26]}  Bxb2 {[%clk 0:00:11]} 51. Rxb2 {[%clk 0:05:28]}  h5 {[%clk 0:00:12]} 52. Ke4 {[%clk 0:05:30]}  c5 {[%clk 0:00:12]} 53. Rb6 {[%clk 0:05:31]}  Kg7 {[%clk 0:00:13]} 54. Rc6 {[%clk 0:05:32]}  Kh6 {[%clk 0:00:14]} 55. Rc8 {[%clk 0:05:33]}  h4 {[%clk 0:00:16]} 56. Rh8+ {[%clk 0:05:34]}  Kg5 {[%clk 0:00:17]} 57. Rd8 {[%clk 0:05:36]}  Kg4 {[%clk 0:00:18]} 58. Rd1 {[%clk 0:05:38]}  Rf4+ {[%clk 0:00:18]} 59. Ke3 {[%clk 0:05:39]}  g5 {[%clk 0:00:19]} 60. Rg1+ {[%clk 0:05:40]}  Kh5 {[%clk 0:00:20]} 61. Rc1 {[%clk 0:05:42]}  c4 {[%clk 0:00:21]} 62. Ra1 {[%clk 0:05:43]}  h3 {[%clk 0:00:22]} 63. Rg1 {[%clk 0:05:44]}  Kh4 {[%clk 0:00:24]} 64. Ke2 {[%clk 0:05:45]}  Rf8 {[%clk 0:00:24]} 65. Rc1 {[%clk 0:05:46]}  Rc8 {[%clk 0:00:24]} 66. Kd2 {[%clk 0:05:47]}  g4 {[%clk 0:00:25]} 67. Rh1 {[%clk 0:05:48]}  c3+ {[%clk 0:00:26]} 68. Kc2 {[%clk 0:05:50]}  g3 {[%clk 0:00:27]} 69. Rg1 {[%clk 0:05:51]}  h2 {[%clk 0:00:28]} 70. Re1 {[%clk 0:05:53]}  g2 {[%clk 0:00:29]} 71. Re4+ {[%clk 0:05:53]}  Kg5 {[%clk 0:00:30]} 72. Re3 {[%clk 0:05:55]}  g1=Q {[%clk 0:00:31]} 73. Rg3+ {[%clk 0:05:57]} 0-1


[Site "Internet"]

[Event "Chessable Masters - Torneo preliminare"]
[White "Xu, Yinglun"]
[Black "Rustemov, Alexander"]
[WhiteFideId "8604940"]
[BlackFideId "4119002"]
[WhiteElo "2523"]
[BlackElo "2494"]
[Result "1-0"]
[Round "4"]
[TimeControl "600+2"]
[Date "2023.03.13"]
[WhiteClock "0:01:56"]
[BlackClock "0:01:23"]

1. c4 {[%clk 0:10:00]}  e6 {[%clk 0:09:57]} 2. Nc3 {[%clk 0:10:01]}  d5 {[%clk 0:09:57]} 3. d4 {[%clk 0:10:03]}  Be7 {[%clk 0:09:56]} 4. cxd5 {[%clk 0:09:51]}  exd5 {[%clk 0:09:54]} 5. Bf4 {[%clk 0:09:51]}  c6 {[%clk 0:09:51]} 6. e3 {[%clk 0:09:42]}  Bf5 {[%clk 0:09:47]} 7. Nge2 {[%clk 0:09:39]}  Nd7 {[%clk 0:09:39]} 8. h4 {[%clk 0:09:37]}  Bxh4 {[%clk 0:09:20]} 9. Qb3 {[%clk 0:09:17]}  b6 {[%clk 0:09:02]} 10. Nxd5 {[%clk 0:08:26]}  cxd5 {[%clk 0:08:58]} 11. Rxh4 {[%clk 0:08:27]}  Qxh4 {[%clk 0:08:52]} 12. Qxd5 {[%clk 0:08:28]}  Rc8 {[%clk 0:08:41]} 13. Qxf5 {[%clk 0:08:19]}  Ngf6 {[%clk 0:08:12]} 14. Nc3 {[%clk 0:08:00]}  O-O {[%clk 0:08:10]} 15. Bg3 {[%clk 0:07:18]}  Qh1 {[%clk 0:07:37]} 16. O-O-O {[%clk 0:06:53]}  g6 {[%clk 0:07:25]} 17. Qf3 {[%clk 0:06:40]}  Qh6 {[%clk 0:05:49]} 18. Ba6 {[%clk 0:06:30]}  Rcd8 {[%clk 0:05:31]} 19. Bc7 {[%clk 0:06:05]}  Rc8 {[%clk 0:04:54]} 20. Bxc8 {[%clk 0:05:46]}  Rxc8 {[%clk 0:04:55]} 21. Bf4 {[%clk 0:05:46]}  Qf8 {[%clk 0:04:53]} 22. Kb1 {[%clk 0:05:34]}  Qb4 {[%clk 0:04:43]} 23. e4 {[%clk 0:05:34]}  b5 {[%clk 0:03:13]} 24. Be5 {[%clk 0:03:39]}  Rxc3 {[%clk 0:02:45]} 25. Qxc3 {[%clk 0:03:38]}  Qxc3 {[%clk 0:02:47]} 26. bxc3 {[%clk 0:03:39]}  Nxe4 {[%clk 0:02:48]} 27. Kc2 {[%clk 0:03:24]}  Nxf2 {[%clk 0:02:41]} 28. Rb1 {[%clk 0:03:23]}  a6 {[%clk 0:02:41]} 29. a4 {[%clk 0:03:23]}  f6 {[%clk 0:02:41]} 30. axb5 {[%clk 0:03:19]}  axb5 {[%clk 0:02:37]} 31. Bc7 {[%clk 0:03:10]}  Ng4 {[%clk 0:02:36]} 32. Kd3 {[%clk 0:03:02]}  Kf7 {[%clk 0:02:27]} 33. Rxb5 {[%clk 0:03:02]}  h5 {[%clk 0:02:25]} 34. c4 {[%clk 0:03:02]}  h4 {[%clk 0:02:09]} 35. c5 {[%clk 0:02:57]}  Nf2+ {[%clk 0:02:05]} 36. Ke3 {[%clk 0:02:54]}  Nd1+ {[%clk 0:02:06]} 37. Kd2 {[%clk 0:02:53]}  Nf2 {[%clk 0:02:06]} 38. c6 {[%clk 0:02:53]}  Nf8 {[%clk 0:02:02]} 39. d5 {[%clk 0:02:39]}  Ne4+ {[%clk 0:01:56]} 40. Kd3 {[%clk 0:02:36]}  f5 {[%clk 0:01:50]} 41. Be5 {[%clk 0:02:35]}  g5 {[%clk 0:01:38]} 42. c7 {[%clk 0:02:25]}  Nd7 {[%clk 0:01:23]} 43. c8=Q {[%clk 0:01:56]}  Nxe5+ {[%clk 0:01:23]} 44. Kd4 {[%clk 0:01:56]} 1-0


[Site "Internet"]

[Event "Chessable Masters - Torneo preliminare"]
[White "Tan, Zhongyi"]
[Black "Raja, Rithvik R"]
[WhiteFideId "8603642"]
[BlackFideId "35007394"]
[WhiteElo "2517"]
[BlackElo "2387"]
[Result "1-0"]
[Round "4"]
[TimeControl "600+2"]
[Date "2023.03.13"]
[WhiteClock "0:02:21"]
[BlackClock "0:01:35"]

1. d4 {[%clk 0:10:01]}  Nf6 {[%clk 0:10:00]} 2. c4 {[%clk 0:10:02]}  e6 {[%clk 0:10:00]} 3. Nc3 {[%clk 0:09:58]}  Bb4 {[%clk 0:09:52]} 4. e3 {[%clk 0:09:58]}  O-O {[%clk 0:09:50]} 5. Bd3 {[%clk 0:09:43]}  b6 {[%clk 0:09:44]} 6. Nf3 {[%clk 0:09:37]}  Bb7 {[%clk 0:09:44]} 7. O-O {[%clk 0:09:37]}  Bxc3 {[%clk 0:09:42]} 8. bxc3 {[%clk 0:09:39]}  d6 {[%clk 0:09:40]} 9. Nd2 {[%clk 0:09:01]}  e5 {[%clk 0:09:26]} 10. e4 {[%clk 0:08:54]}  Re8 {[%clk 0:08:58]} 11. Re1 {[%clk 0:08:55]}  Nc6 {[%clk 0:08:45]} 12. Bb2 {[%clk 0:08:54]}  Na5 {[%clk 0:08:37]} 13. f3 {[%clk 0:08:52]}  Ba6 {[%clk 0:08:30]} 14. Qe2 {[%clk 0:08:51]}  c5 {[%clk 0:08:25]} 15. Nf1 {[%clk 0:08:36]}  Rc8 {[%clk 0:08:08]} 16. Ne3 {[%clk 0:08:35]}  Qd7 {[%clk 0:07:40]} 17. Rac1 {[%clk 0:07:58]}  Rc7 {[%clk 0:07:26]} 18. Rc2 {[%clk 0:06:43]}  Rec8 {[%clk 0:07:17]} 19. d5 {[%clk 0:06:37]}  Rb7 {[%clk 0:06:48]} 20. Bc1 {[%clk 0:06:19]}  Qa4 {[%clk 0:05:52]} 21. f4 {[%clk 0:05:48]}  exf4 {[%clk 0:05:42]} 22. Nf5 {[%clk 0:05:48]}  Ne8 {[%clk 0:05:40]} 23. e5 {[%clk 0:05:39]}  dxe5 {[%clk 0:04:34]} 24. Qxe5 {[%clk 0:05:26]}  Bxc4 {[%clk 0:04:34]} 25. Rce2 {[%clk 0:05:00]}  h6 {[%clk 0:03:40]} 26. Qxf4 {[%clk 0:04:12]}  Kf8 {[%clk 0:03:13]} 27. Re4 {[%clk 0:03:36]}  Nf6 {[%clk 0:02:36]} 28. Qg3 {[%clk 0:03:05]}  Nh5 {[%clk 0:02:04]} 29. Qg4 {[%clk 0:03:05]}  g6 {[%clk 0:01:37]} 30. Bxc4 {[%clk 0:03:00]}  Nf6 {[%clk 0:01:35]} 31. Qh4 {[%clk 0:02:21]} 1-0


[Site "Internet"]